bitfinex-derivatives/quotes_BNBF0:USTF0_20250617
["timestamp","ask_amount","ask_price","bid_price","bid_amount"]
[1750193150213,1.00610094,647.89,647.69,1.428]
[1750193150509,1.00610094,647.88,647.69,1.428]
[1750193150709,1.15501208,648.1,647.69,1.428]
[1750193150913,2.16195819,648.09,647.69,1.428]
[1750193151113,1.00694611,648.08,647.69,1.428]
[1750193151313,1.00694611,648.07,647.69,1.428]
[1750193151613,1.00694611,648.06,647.69,1.428]
[1750193151912,1.00694611,648.05,647.69,1.428]
[1750193152111,1.00694611,648.04,647.69,1.428]
[1750193152313,1.00694611,648.03,647.69,1.428]
[1750193152608,1.00694611,648.02,647.68,1.404]
[1750193152812,1.00694611,648.01,647.68,1.404]
[1750193153012,1.00694611,648.0,647.68,1.404]
[1750193153308,1.00694611,647.99,647.68,1.404]
[1750193153513,1.00694611,647.98,647.68,1.404]
[1750193153709,1.00694611,647.97,647.68,1.404]
[1750193153914,1.00694611,647.96,647.68,1.404]
[1750193154115,1.00694611,647.95,647.68,1.404]
[1750193154414,1.00694611,647.94,647.68,1.404]
[1750193154713,1.00694611,647.93,647.68,1.404]
[1750193154910,1.00694611,647.92,647.68,1.404]
[1750193155211,1.00694611,647.91,647.68,1.404]
[1750193155410,1.00694611,647.9,647.68,1.404]
[1750193155611,1.00694611,647.89,647.68,1.404]
[1750193155815,1.00694611,647.88,647.68,1.404]
[1750193156114,1.00694611,647.87,647.68,1.404]
[1750193156315,1.00694611,647.86,647.68,1.404]
[1750193156515,1.00694611,647.85,647.68,1.404]
[1750193156710,1.00694611,647.84,647.68,1.404]
[1750193157011,1.00694611,647.83,647.68,1.404]
[1750193157212,1.00694611,647.82,647.68,1.404]
[1750193157412,1.00694611,647.81,647.68,1.404]
[1750193157715,1.00694611,647.8,647.68,1.404]
[1750193158016,1.00694611,647.79,647.68,1.404]
[1750193158317,1.00694611,647.78,647.68,1.404]
[1750193158516,1.00694611,647.77,647.68,1.404]
[1750193158815,1.00694611,647.76,647.68,1.404]
[1750193159115,1.00694611,647.75,647.68,1.404]
[1750193159316,1.00694611,647.74,647.68,1.404]
[1750193159516,1.00694611,647.73,647.68,1.404]
[1750193159715,1.00694611,647.72,647.68,1.404]
[1750193159916,1.00694611,647.71,647.68,1.404]
[1750193160216,1.00694611,647.7,647.68,1.404]
[1750193160416,1.00694611,647.69,647.67,2.369]
[1750193160617,1.00694611,647.68,647.67,2.369]
[1750193161312,1.00694611,647.68,647.67,1.141]
[1750193170621,1.15501208,647.86,647.67,1.141]
[1750193170822,1.00694611,647.85,647.67,1.141]
[1750193171022,1.00694611,647.84,647.67,1.141]
[1750193171222,1.15501208,647.86,647.57,2.666]
[1750193171223,1.00694611,647.83,647.57,2.666]
[1750193171418,1.15501208,647.86,647.57,2.666]
[1750193171419,1.00694611,647.82,647.57,2.666]
[1750193171623,1.00694611,647.81,647.57,2.666]
[1750193171924,1.00694611,647.8,647.57,2.666]
[1750193172219,1.00694611,647.79,647.57,2.666]
[1750193172418,1.00694611,647.78,647.57,2.666]
[1750193172628,1.00694611,647.77,647.57,2.666]
[1750193172925,1.00694611,647.76,647.57,2.666]
[1750193173124,1.00694611,647.75,647.57,2.666]
[1750193173320,1.00694611,647.74,647.57,2.666]
[1750193173620,1.00694611,647.73,647.57,2.666]
[1750193173823,1.00694611,647.72,647.57,2.666]
[1750193174020,1.00694611,647.71,647.57,2.666]
[1750193174223,1.00694611,647.88,647.57,2.666]
[1750193174424,1.00694611,647.87,647.57,2.666]
[1750193174623,1.00694611,647.86,647.57,2.666]
[1750193174822,1.00694611,647.85,647.57,2.666]
[1750193175024,1.00694611,647.84,647.58,1.428]
[1750193175225,1.00694611,647.83,647.58,1.428]
[1750193175421,1.15501208,647.9,647.58,1.428]
[1750193175422,1.00694611,647.82,647.58,1.428]
[1750193175727,1.00694611,647.81,647.58,1.428]
[1750193176022,1.00694611,647.8,647.58,1.428]
[1750193176222,1.00694611,647.79,647.58,1.428]
[1750193176421,1.00694611,647.78,647.58,1.428]
[1750193176624,1.00694611,647.77,647.58,1.428]
[1750193176822,1.00694611,647.76,647.58,1.428]
[1750193177022,1.00694611,647.75,647.58,1.428]
[1750193177227,1.00694611,647.74,647.58,1.428]
[1750193177424,1.00694611,647.73,647.58,1.428]
[1750193177727,1.00694611,647.72,647.58,1.428]
[1750193177926,1.00694611,647.71,647.58,1.428]
[1750193178127,1.00694611,647.7,647.58,1.428]
[1750193178325,1.00694611,647.69,647.58,1.428]
[1750193178523,1.00694611,647.87,647.58,1.428]
[1750193178722,1.00694611,647.86,647.58,1.428]
[1750193179122,1.00694611,647.85,647.59,1.338]
[1750193179424,1.00694611,647.84,647.59,1.338]
[1750193179627,1.00694611,647.83,647.59,1.338]
[1750193179927,1.00694611,647.82,647.59,1.338]
[1750193180127,1.00694611,647.81,647.59,1.338]
[1750193180327,1.00694611,647.8,647.59,1.338]
[1750193180522,1.00694611,647.79,647.59,1.338]
[1750193180727,1.00694611,647.78,647.59,1.338]
[1750193180930,1.00694611,647.77,647.59,1.338]
[1750193181128,1.00694611,647.76,647.59,1.338]
[1750193181328,1.00694611,647.75,647.59,1.338]
[1750193181529,1.00694611,647.74,647.59,1.338]
[1750193181731,1.00694611,647.73,647.59,1.338]
[1750193182027,1.00694611,647.72,647.59,1.338]
[1750193182229,1.00694611,647.71,647.59,1.338]
[1750193182431,1.00694611,647.7,647.59,1.338]
[1750193182725,1.00694611,647.69,647.59,1.338]
[1750193182931,1.00694611,647.68,647.59,1.338]
[1750193183130,1.00694611,647.67,647.59,1.338]
[1750193183329,1.15501208,647.86,647.59,1.338]
[1750193183528,1.00694611,647.85,647.59,1.338]
[1750193183729,1.00694611,647.84,647.59,1.338]
[1750193183930,1.00694611,647.83,647.59,1.338]
[1750193184133,1.00694611,647.82,647.59,1.338]
[1750193184331,1.00694611,647.81,647.59,1.338]
[1750193184532,1.00694611,647.8,647.59,1.338]
[1750193184730,1.00694611,647.79,647.59,1.338]
[1750193184929,1.00694611,647.78,647.59,1.338]
[1750193185129,1.00694611,647.77,647.59,1.338]
[1750193185330,1.00694611,647.76,647.59,1.338]
[1750193185532,1.00694611,647.75,647.59,1.338]
[1750193185728,1.00694611,647.74,647.59,1.338]
[1750193185932,1.00694611,647.73,647.59,1.338]
[1750193186129,1.00694611,647.72,647.59,1.338]
[1750193186334,1.00694611,647.71,647.59,1.338]
[1750193186533,1.00694611,647.7,647.59,1.338]
[1750193186830,1.00694611,647.69,647.59,1.338]
[1750193187029,1.00694611,647.68,647.59,1.338]
[1750193187228,1.00694611,647.67,647.59,1.338]
[1750193187431,1.15501208,647.89,647.59,1.338]
[1750193187432,1.00694611,647.66,647.59,1.338]
[1750193187628,1.00694611,647.65,647.59,1.338]
[1750193187830,1.00694611,647.64,647.59,1.338]
[1750193188031,1.00694611,647.63,647.59,1.338]
[1750193188230,1.15501208,647.89,647.59,1.338]
[1750193188529,1.00474809,647.88,647.59,1.338]
[1750193188732,1.00474809,647.87,647.59,1.338]
[1750193188931,1.00474809,647.86,647.59,1.338]
[1750193189137,1.00474809,647.85,647.59,1.338]
[1750193189432,1.00474809,647.84,647.59,1.338]
[1750193189632,1.00474809,647.83,647.59,1.338]
[1750193189835,1.00474809,647.82,647.59,1.338]
[1750193190131,1.00474809,647.81,647.59,1.338]
[1750193190335,1.00474809,647.8,647.59,1.338]
[1750193190535,1.00474809,647.79,647.59,1.338]
[1750193190733,1.00474809,647.78,647.59,1.338]
[1750193190932,1.53717921,648.03,647.59,1.338]
[1750193190933,1.00474809,647.77,647.59,1.338]
[1750193191131,1.00474809,647.76,647.59,1.338]
[1750193191435,1.00474809,647.75,647.59,1.338]
[1750193191736,1.00474809,647.74,647.59,1.338]
[1750193191934,1.00474809,647.73,647.59,1.338]
[1750193192236,1.00474809,647.72,647.59,1.338]
[1750193192430,1.00474809,647.71,647.59,1.338]
[1750193192633,1.00474809,647.7,647.59,1.338]
[1750193192834,1.00474809,647.69,647.59,1.338]
[1750193193033,1.00474809,647.68,647.59,1.338]
[1750193193233,1.00474809,647.67,647.59,1.338]
[1750193193433,1.00474809,647.66,647.59,1.338]
[1750193193636,1.00474809,647.65,647.59,1.338]
[1750193193836,1.15501208,647.88,647.59,1.338]
[1750193193837,1.00474809,647.64,647.59,1.338]
[1750193194038,1.15501208,647.84,647.59,1.338]
[1750193194239,1.00474809,647.83,647.59,1.338]
[1750193194436,1.00474809,647.82,647.59,1.338]
[1750193194638,1.00474809,647.81,647.59,1.338]
[1750193194839,1.00474809,647.8,647.59,1.338]
[1750193195040,1.00474809,647.79,647.59,1.338]
[1750193195237,1.00474809,647.78,647.58,1.428]
[1750193195436,1.00474809,647.77,647.58,1.428]
[1750193195642,1.00474809,647.76,647.58,1.428]
[1750193195837,1.00474809,647.75,647.58,1.428]
[1750193196044,1.00474809,647.74,647.58,1.428]
[1750193196243,1.00474809,647.73,647.58,1.428]
[1750193196441,1.00474809,647.72,647.58,1.428]
[1750193196643,1.00474809,647.71,647.58,1.428]
[1750193196944,1.00474809,647.7,647.58,1.428]
[1750193197141,1.00474809,647.69,647.58,1.428]
[1750193197451,1.00474809,647.68,647.58,1.428]
[1750193197641,1.00474809,647.67,647.58,1.428]
[1750193197839,1.00474809,647.66,647.58,1.428]
[1750193198039,1.00474809,647.65,647.58,1.428]
[1750193198241,1.00474809,647.64,647.58,1.428]
[1750193198445,1.15501208,647.84,647.58,1.428]
[1750193198744,1.00568272,647.83,647.58,1.428]
[1750193198944,1.00568272,647.83,647.54,1.372]
[1750193198945,1.00568272,647.82,647.54,1.372]
[1750193199141,1.00568272,647.81,647.54,1.372]
[1750193199342,1.00568272,647.8,647.54,1.372]
[1750193199641,1.00568272,647.79,647.54,1.372]
[1750193199843,1.00568272,647.78,647.54,1.372]
[1750193200040,1.00568272,647.77,647.54,1.372]
[1750193200244,1.00568272,647.76,647.54,1.372]
[1750193200442,1.00568272,647.75,647.54,1.372]
[1750193200743,1.00568272,647.74,647.54,1.372]
[1750193200945,1.00568272,647.73,647.54,1.372]
[1750193201145,1.00568272,647.72,647.54,1.372]
[1750193201343,1.00568272,647.71,647.54,1.372]
[1750193201543,1.00568272,647.7,647.54,1.372]
[1750193201743,1.00568272,647.69,647.54,1.372]
[1750193201948,1.00568272,647.68,647.54,1.372]
[1750193202142,1.00568272,647.67,647.54,1.372]
[1750193202342,1.00568272,647.66,647.54,1.372]
[1750193202547,1.00568272,647.65,647.54,1.372]
[1750193202747,1.00568272,647.64,647.54,1.372]
[1750193202949,1.00568272,647.63,647.54,1.372]
[1750193203144,1.00568272,647.62,647.54,1.372]
[1750193203349,1.00568272,647.61,647.54,1.372]
[1750193203546,1.15501208,647.86,647.54,1.372]
[1750193203751,1.00673859,647.85,647.54,1.372]
[1750193203947,1.00673859,647.84,647.54,1.372]
[1750193204250,1.00673859,647.83,647.54,1.372]
[1750193204450,1.00673859,647.82,647.54,1.372]
[1750193204645,1.00673859,647.81,647.54,1.372]
[1750193204846,1.00673859,647.8,647.54,1.372]
[1750193205050,1.00673859,647.79,647.54,1.372]
[1750193205346,1.00673859,647.78,647.54,1.372]
[1750193205648,1.00673859,647.77,647.54,1.372]
[1750193205845,1.00673859,647.76,647.54,1.372]
[1750193206051,1.00673859,647.75,647.54,1.372]
[1750193206252,1.00673859,647.74,647.54,1.372]
[1750193206448,1.00673859,647.73,647.54,1.372]
[1750193206647,1.00673859,647.72,647.54,1.372]
[1750193206850,1.00673859,647.71,647.54,1.372]
[1750193207150,1.00673859,647.7,647.54,1.372]
[1750193207348,1.00673859,647.69,647.54,1.372]
[1750193207547,1.00673859,647.68,647.54,1.372]
[1750193207748,1.00673859,647.67,647.54,1.372]
[1750193207949,1.00673859,647.66,647.54,1.372]
[1750193208150,1.00673859,647.65,647.54,1.372]
[1750193208351,1.00673859,647.64,647.54,1.372]
[1750193208547,1.00673859,647.63,647.54,1.372]
[1750193208847,1.00673859,647.62,647.54,1.372]
[1750193209053,1.00673859,647.61,647.54,1.372]
[1750193209248,1.00673859,647.6,647.54,1.372]
[1750193209449,1.00673859,647.59,647.54,1.372]
[1750193209649,1.00673859,647.58,647.54,1.372]
[1750193209948,1.00673859,647.57,647.54,1.372]
[1750193210152,1.00673859,647.56,647.54,1.372]
[1750193210348,1.01271033,647.55,647.54,1.372]
[1750193210551,1.15501208,647.77,647.54,1.372]
[1750193210752,1.01276643,647.76,647.54,1.372]
[1750193210953,1.01276643,647.75,647.54,1.372]
[1750193211151,1.01276643,647.74,647.54,1.372]
[1750193211349,1.01276643,647.73,647.54,1.372]
[1750193211650,1.01276643,647.72,647.54,1.372]
[1750193211955,1.01276643,647.71,647.54,1.372]
[1750193212250,1.01276643,647.7,647.54,1.372]
[1750193212448,1.15501208,647.75,647.54,1.372]
[1750193212449,1.01276643,647.69,647.54,1.372]
[1750193212654,1.01276643,647.68,647.54,1.372]
[1750193212856,1.01276643,647.67,647.54,1.372]
[1750193213055,1.01276643,647.66,647.54,1.372]
[1750193213351,1.01276643,647.65,647.54,1.372]
[1750193213654,1.01276643,647.64,647.54,1.372]
[1750193213850,1.01276643,647.63,647.54,1.372]
[1750193214051,1.01276643,647.62,647.54,1.372]
[1750193214355,1.01276643,647.61,647.54,1.372]
[1750193214552,1.01276643,647.6,647.54,1.372]
[1750193214752,1.01276643,647.59,647.54,1.372]
[1750193214953,1.01276643,647.58,647.54,1.372]
[1750193215152,3.84294804,648.55,647.54,1.372]
[1750193215153,1.01276643,647.57,647.54,1.372]
[1750193215356,1.01276643,647.56,647.54,1.372]
[1750193215553,1.01276643,647.55,647.54,1.372]
[1750193225357,2.16777851,647.55,647.54,1.372]
[1750193226156,1.01276643,647.55,647.54,1.372]
[1750193226958,1.53717921,647.69,647.54,1.372]
[1750193227161,1.01200351,647.68,647.54,1.372]
[1750193227357,1.1509844,647.56,647.54,1.372]
[1750193227661,1.30496353,647.67,647.54,1.372]
[1750193227858,1.30496353,647.68,647.54,1.372]
[1750193228262,1.01167663,647.66,647.54,1.372]
[1750193228462,1.15054242,647.57,647.54,1.372]
[1750193229264,1.01167663,647.56,647.54,1.372]
[1750193229459,1.53717921,647.7,647.54,1.372]
[1750193230260,1.53717921,647.71,647.54,1.372]
[1750193230662,1.01153256,647.69,647.54,1.372]
[1750193231960,1.78674753,648.43,647.54,1.372]
[1750193232162,0.30842303,648.46,647.54,1.372]
[1750193232361,1.78587352,648.45,647.54,1.372]
[1750193232665,0.3084373,648.43,647.54,1.372]
[1750193232965,1.78587352,648.42,647.54,1.372]
[1750193233163,0.30845157,648.4,647.54,1.372]
[1750193233364,1.78587352,648.39,647.54,1.372]
[1750193233561,0.30846584,648.37,647.54,1.372]
[1750193233765,1.78587352,648.36,647.54,1.372]
[1750193233964,0.30848011,648.34,647.54,1.372]
[1750193234163,1.78587352,648.33,647.54,1.372]
[1750193234361,2.09436315,648.32,647.54,1.372]
[1750193234565,2.09436791,648.31,647.54,1.372]
[1750193234766,2.09354317,648.3,647.54,1.372]
[1750193234966,2.09354793,648.29,647.54,1.372]
[1750193235165,2.09355268,648.28,647.54,1.372]
[1750193235365,2.09355744,648.27,647.54,1.372]
[1750193235563,2.0935622,648.26,647.54,1.372]
[1750193235768,1.1493514,647.55,647.54,1.372]
[1750193236067,2.15991988,647.55,647.54,1.372]
[1750193237170,1.01056848,647.55,647.54,1.372]
[1750193237366,2.15944859,647.55,647.54,1.372]
[1750193237571,2.15944859,647.55,647.53,1.462]
[1750193237865,1.01056848,647.54,647.53,1.462]
[1750193240670,1.01056848,647.54,647.43,1.07]
[1750193240970,1.01056848,647.53,647.43,1.07]
[1750193241267,1.01056848,647.52,647.43,1.07]
[1750193241467,1.01056848,647.51,647.43,1.07]
[1750193241668,1.01056848,647.5,647.43,1.07]
[1750193241870,1.01056848,647.49,647.43,1.07]
[1750193242068,1.01056848,647.48,647.43,1.07]
[1750193242270,1.01056848,647.47,647.43,1.07]
[1750193242470,1.01056848,647.46,647.43,1.07]
[1750193242766,1.01056848,647.45,647.43,1.07]
[1750193242970,1.01056848,647.44,647.43,1.07]
[1750193251689,1.53246854,647.6,647.43,1.07]
[1750193251888,1.77945164,647.7,647.43,1.07]
[1750193252089,1.14570011,647.49,647.43,1.07]
[1750193252288,1.01400937,647.48,647.43,1.07]
[1750193252586,1.01400937,647.47,647.43,1.07]
[1750193252789,1.01400937,647.46,647.43,1.07]
[1750193252987,1.14570011,647.49,647.43,1.07]
[1750193252988,1.01400937,647.45,647.43,1.07]
[1750193253185,1.01400937,647.44,647.43,1.07]
[1750193273203,1.01400937,647.44,647.33,1.157]
[1750193273403,1.01400937,647.43,647.33,1.157]
[1750193273605,1.01400937,647.42,647.33,1.157]
[1750193273805,1.01400937,647.41,647.33,1.157]
[1750193274002,1.01400937,647.4,647.33,1.157]
[1750193274302,1.01400937,647.39,647.33,1.157]
[1750193274502,1.01400937,647.38,647.33,1.157]
[1750193277101,1.01400937,647.34,647.33,1.157]
[1750193292625,1.14570011,647.42,647.33,1.157]
[1750193292921,1.52760014,647.54,647.33,1.157]
[1750193293522,2.29140022,647.65,647.33,1.157]
[1750193294122,1.15174148,647.41,647.33,1.157]
[1750193294722,1.5356553,647.51,647.33,1.157]
[1750193294927,1.15157765,647.41,647.33,1.157]
[1750193295119,1.01862321,647.4,647.33,1.157]
[1750193295318,1.01862321,647.39,647.33,1.157]
[1750193295623,1.01862321,647.38,647.33,1.157]
[1750193295821,1.01862321,647.37,647.33,1.157]
[1750193296022,1.01862321,647.36,647.33,1.157]
[1750193296220,1.01862321,647.35,647.33,1.157]
[1750193296418,1.01862321,647.34,647.33,1.157]
[1750193300629,2.17020086,647.34,647.23,1.175]
[1750193300829,1.01862321,647.33,647.23,1.175]
[1750193301026,1.01862321,647.32,647.23,1.175]
[1750193301225,1.01862321,647.31,647.23,1.175]
[1750193301526,1.01862321,647.3,647.23,1.175]
[1750193301726,1.01862321,647.29,647.23,1.175]
[1750193301926,1.01862321,647.28,647.23,1.175]
[1750193302126,1.01862321,647.27,647.23,1.175]
[1750193302329,1.01862321,647.26,647.23,1.175]
[1750193302624,1.01862321,647.25,647.23,1.175]
[1750193302829,1.01862321,647.24,647.23,1.175]
[1750193318943,1.01862321,647.24,647.14,1.471]
[1750193319244,1.01862321,647.23,647.14,1.471]
[1750193319440,1.01862321,647.22,647.14,1.471]
[1750193319739,1.01862321,647.21,647.14,1.471]
[1750193319940,1.01862321,647.2,647.14,1.471]
[1750193320143,1.01862321,647.19,647.14,1.471]
[1750193320344,1.01862321,647.18,647.14,1.471]
[1750193320544,1.01862321,647.17,647.14,1.471]
[1750193320744,1.01862321,647.16,647.14,1.471]
[1750193320941,1.01862321,647.15,647.14,1.471]
[1750193338955,1.01862321,647.15,647.05,1.45]
[1750193339156,1.14459837,647.13,647.05,1.45]
[1750193339355,1.01862321,647.12,647.05,1.45]
[1750193339556,1.01862321,647.11,647.05,1.45]
[1750193339760,1.01862321,647.1,647.05,1.45]
[1750193339961,1.01862321,647.09,647.05,1.45]
[1750193340256,1.01862321,647.08,647.05,1.45]
[1750193340461,1.01862321,647.07,647.05,1.45]
[1750193340757,1.01862321,647.06,647.05,1.45]
[1750193359269,1.01862321,647.06,646.95,0.983]
[1750193359472,1.01862321,647.05,646.95,0.983]
[1750193359671,1.01862321,647.04,646.95,0.983]
[1750193359871,1.01862321,647.03,646.4,0.26895432]
[1750193360066,1.01862321,647.02,646.4,0.26895432]
[1750193360269,1.01862321,647.01,646.4,0.26895432]
[1750193360468,1.01862321,647.0,646.4,0.26895432]
[1750193360772,1.01862321,646.99,646.4,0.26895432]
[1750193361068,1.01862321,646.98,646.4,0.26895432]
[1750193361267,1.14459837,647.4,646.4,0.26895432]
[1750193361469,2.15309354,647.39,646.4,0.26895432]
[1750193361668,1.00849517,647.38,646.4,0.26895432]
[1750193361868,1.00849517,647.37,646.41,2.62]
[1750193362070,1.00849517,647.36,646.41,2.62]
[1750193362367,1.00849517,647.35,646.41,2.62]
[1750193362570,1.00849517,647.34,646.41,2.62]
[1750193362768,1.00849517,647.33,646.42,1.064]
[1750193362969,1.00849517,647.32,646.42,1.064]
[1750193363168,1.00849517,647.31,646.42,1.064]
[1750193363370,1.00849517,647.3,646.42,1.064]
[1750193363568,1.00849517,647.29,646.42,1.064]
[1750193363771,1.00849517,647.28,646.42,1.064]
[1750193364070,1.00849517,647.27,646.42,1.064]
[1750193364272,1.14459837,647.39,646.42,1.064]
[1750193364273,1.00849517,647.26,646.42,1.064]
[1750193364568,1.00849517,647.25,646.42,1.064]
[1750193364771,1.00849517,647.24,646.42,1.064]
[1750193365173,1.00849517,647.23,646.42,1.064]
[1750193365373,1.00849517,647.22,646.42,1.064]
[1750193365569,1.00849517,647.21,646.42,1.064]
[1750193365872,1.00849517,647.2,646.42,1.064]
[1750193366069,1.00849517,647.19,646.42,1.064]
[1750193366274,1.00849517,647.18,646.42,1.064]
[1750193366472,1.00849517,647.17,646.42,1.064]
[1750193366673,1.00849517,647.16,646.42,1.064]
[1750193366873,1.14459837,647.38,646.42,1.064]
[1750193366874,1.00849517,647.15,646.42,1.064]
[1750193367071,1.00849517,647.14,646.42,1.064]
[1750193367376,1.14459837,647.39,646.42,1.37339636]
[1750193367377,1.00849517,647.13,646.42,1.37339636]
[1750193367570,1.00849517,647.12,646.43,0.30939158]
[1750193367774,1.00849517,647.11,646.43,0.30939158]
[1750193367975,1.00849517,647.1,646.43,0.30939158]
[1750193368177,1.14459837,647.39,646.43,0.30939158]
[1750193368376,1.00955196,647.38,646.43,0.30939158]
[1750193368671,1.00955196,647.37,646.43,0.30939158]
[1750193368871,1.00955196,647.36,646.43,0.30939158]
[1750193369074,1.00955196,647.35,646.43,0.30939158]
[1750193369276,1.00955196,647.34,646.43,0.30939158]
[1750193369472,1.00955196,647.33,646.43,0.30939158]
[1750193369676,1.00955196,647.32,646.43,0.30939158]
[1750193369875,1.00955196,647.31,646.43,0.30939158]
[1750193370073,1.00955196,647.3,646.43,0.30939158]
[1750193370276,1.00955196,647.29,646.43,0.30939158]
[1750193370574,1.00955196,647.28,646.43,0.30939158]
[1750193370773,1.00955196,647.27,646.43,0.30939158]
[1750193370977,1.00955196,647.26,646.43,0.30939158]
[1750193371173,1.00955196,647.25,646.43,0.30939158]
[1750193371381,1.00955196,647.24,646.43,0.30939158]
[1750193371574,1.00955196,647.23,646.43,0.30939158]
[1750193371780,1.14459837,647.39,646.43,0.30939158]
[1750193371781,1.00955196,647.22,646.43,0.30939158]
[1750193371975,1.00955196,647.21,646.43,0.30939158]
[1750193372180,1.01013146,647.2,646.43,0.30939158]
[1750193372377,1.01013146,647.19,646.43,0.30939158]
[1750193372580,1.01013146,647.18,646.43,0.30939158]
[1750193372781,1.01013146,647.17,646.43,0.30939158]
[1750193372980,1.01013146,647.16,646.43,0.30939158]
[1750193373276,1.01013146,647.15,646.43,0.30939158]
[1750193373480,1.01013146,647.14,646.43,0.30939158]
[1750193373680,1.01013146,647.13,646.43,0.30939158]
[1750193373875,1.01013146,647.12,646.43,0.30939158]
[1750193374075,1.01013146,647.11,646.43,0.30939158]
[1750193374280,1.14721257,647.38,646.43,0.30939158]
[1750193374480,1.01038242,647.37,646.43,0.30939158]
[1750193374681,1.01038242,647.36,646.43,0.30939158]
[1750193374881,1.01038242,647.35,646.43,0.30939158]
[1750193375181,1.01038242,647.34,646.43,0.30939158]
[1750193375481,1.01038242,647.33,646.43,0.30939158]
[1750193375679,1.01038242,647.32,646.43,0.30939158]
[1750193375879,1.01038242,647.31,646.43,0.30939158]
[1750193376082,1.01038242,647.3,646.43,0.30939158]
[1750193376282,1.01038242,647.29,646.43,0.30939158]
[1750193376582,1.01038242,647.28,646.43,0.30939158]
[1750193376778,1.01038242,647.27,646.43,0.30939158]
[1750193376983,1.01038242,647.26,646.43,0.30939158]
[1750193377183,1.01038242,647.25,646.43,0.30939158]
[1750193377382,1.01038242,647.24,646.43,0.30939158]
[1750193377683,1.14721257,647.36,646.43,0.30939158]
[1750193377684,1.01038242,647.23,646.43,0.30939158]
[1750193377881,1.01038242,647.22,646.43,0.30939158]
[1750193378081,1.01038242,647.21,646.43,0.30939158]
[1750193378278,1.01038242,647.2,646.43,0.30939158]
[1750193378479,1.01038242,647.19,646.43,0.30939158]
[1750193378684,1.01038242,647.18,646.43,0.30939158]
[1750193378886,1.01038242,647.17,646.43,0.30939158]
[1750193379082,1.01038242,647.16,646.43,0.30939158]
[1750193379283,1.01038242,647.15,646.43,0.30939158]
[1750193379485,1.01038242,647.14,646.43,0.30939158]
[1750193379689,1.01038242,647.13,646.43,0.30939158]
[1750193379889,1.14721257,647.36,646.43,0.30939158]
[1750193380089,1.01039514,647.35,646.43,0.30939158]
[1750193380389,1.01039514,647.34,646.43,0.30939158]
[1750193380589,1.01039514,647.33,646.43,0.30939158]
[1750193380788,1.01039514,647.32,646.43,0.30939158]
[1750193380989,1.01039514,647.31,646.43,0.30939158]
[1750193381190,1.01039514,647.3,646.43,0.30939158]
[1750193381391,1.01039514,647.29,646.43,0.30939158]
[1750193381587,1.01039514,647.28,646.43,0.30939158]
[1750193381787,1.01039514,647.27,646.43,0.30939158]
[1750193381985,0.26885251,647.49,646.43,2.6110881]
[1750193381986,1.01039514,647.26,646.43,2.6110881]
[1750193382189,1.01039514,647.25,646.43,2.6110881]
[1750193382390,1.01039514,647.24,646.43,2.6110881]
[1750193382584,1.01039514,647.23,646.43,2.6110881]
[1750193382891,1.01039514,647.22,646.43,2.6110881]
[1750193383089,1.01039514,647.21,646.43,2.6110881]
[1750193383389,1.01039514,647.2,646.43,2.6110881]
[1750193383589,1.01039514,647.19,646.43,2.6110881]
[1750193383789,1.01039514,647.18,646.43,2.6110881]
[1750193383987,1.01039514,647.17,646.43,2.6110881]
[1750193384186,1.01039514,647.16,646.46,2.30169652]
[1750193384389,1.01039514,647.15,646.46,2.30169652]
[1750193384591,1.14721257,647.34,646.46,2.30169652]
[1750193384786,1.01019969,647.33,646.47,1.264]
[1750193385090,1.01019969,647.32,646.47,1.264]
[1750193385287,1.01019969,647.31,646.47,1.264]
[1750193385487,1.01019969,647.3,646.47,1.264]
[1750193385690,1.01019969,647.29,646.47,1.264]
[1750193385889,1.01019969,647.28,646.47,1.264]